[Event "Chhattisgarh Masters GM 2022"]
[Site "Chhattisgarh"]
[Date "2022.09.27"]
[Round "9.16"]
[White "Harshal, Shahi"]
[Black "Singh Ojasva"]
[Result "1-0"]
[ECO "B90"]
[WhiteElo "2136"]
[BlackElo "2456"]
[Annotator "TA"]
[PlyCount "87"]
[EventDate "2022.09.19"]
[EventCountry "IND"]
[SourceTitle "playchess.com"]
[Source "ChessBase"]
[SourceQuality "1"]
[TimeControl "5400+30"]

{[%evp 19,87,25,31,21,27,28,21,17,29,27,43,45,22,23,35,29,76,88,105,95,117,110,116,96,108,102,93,91,102,107,146,146,189,35,21,62,54,33,407,401,373,388,420,441,414,408,307,332,322,332,323,297,469,481,530,506,420,10,11,22,1724,1635,1195,1152,2491,875,2530,0,2359,2143]} 1. e4 {[%emt 0:00:12]} c5 {[%emt 0:00:11]} 2. Nf3 {[%emt 0:00:25]} d6 {[%emt 1:31:19]} 3. d4 {[%emt 0:00:21]} cxd4 {[%emt 0:00:00]} 4. Nxd4 {[%emt 0:00:14]} Nf6 {[%emt 0:00:00]} 5. Nc3 {[%emt 0:00:41]} a6 {[%emt 0:00:00]} 6. Be3 {[%emt 0:00:53]} e5 {[%emt 0:00:00]} 7. Nf3 {[%emt 0:00:33]} Qc7 {[%emt 0:00:00]} 8. a4 {[%emt 0:00:27]} Be7 {[%emt 0:00:00]} 9. Be2 {[%emt 0:00:57] now supersedes 9.a5.} O-O {[%emt 0:00:00]} 10. O-O {[%emt 0:00:25]} b6 {[%emt 0:00:00]} 11. Qd3 {[%emt 0:01:01] was the old line (11.Nd2). B90: Sicilian Najdorf: Unusual White 6th moves, 6 Be3 Ng4 and 6 Be3 e5.} Nc6 {[%emt 0:00:00]} 12. Nd5 {[%emt 0:46:04] Inhibits Nb4.} Nxd5 {[%emt 0:00:00]} 13. exd5 {[%emt 0:00:48] The position is equal.} Nb4 {[%emt 0:00:00]} 14. Qb3 {[%emt 0:02:14] [#]} Qxc2 $146 {[%emt 0:00:00]} ({Predecessor:} 14... a5 15. c3 Ba6 16. Bxa6 Nxa6 17. Bxb6 Rfb8 18. Bxc7 Rxb3 19. Bxa5 Rxb2 20. Rfb1 Rxb1+ 21. Rxb1 {½-½ (45) Safarli,E (2629)-Sjugirov,S (2626) Moscow 2011}) 15. Qxb4 {[%emt 0:00:43] Black must now prevent Nd2.} Qxe2 {[%emt 0:00:00]} 16. Nxe5 {[%emt 0:04:15][%cal Bf3e5,Be5c4,Bc4b6][%mdl 32]} a5 {[%emt 0:00:00]} 17. Qa3 {[%emt 0:04:45]} Bf6 {[%emt 0:00:00]} (17... Qh5 $11 18. Nc6 Re8) 18. Rfe1 $16 {[%emt 0:03:21]} Qh5 {[%emt 0:00:00]} 19. Nc4 {[%emt 0:01:25] White is more active.} Ba6 {[%emt 0:00:00]} 20. Nxb6 {[%emt 0:00:52]} Rad8 {[%emt 0:00:00]} 21. Rac1 {[%emt 0:09:34]} Rfe8 {[%emt 0:00:00]} 22. b4 {[%emt 0:08:07]} axb4 {[%emt 0:00:00]} 23. Qxb4 {[%emt 0:00:06]} h6 {[%emt 0:00:00]} 24. h3 {[%emt 0:01:18]} Bd3 {[%emt 0:03:35]} 25. a5 {[%emt 0:04:23]} Be4 {[%emt 0:01:37] [#]} 26. Qd2 $2 {[%emt 0:07:14]} (26. Bf4 $1 $18 Qg6 27. g3) 26... Qg6 $14 {[%emt 0:01:25][%csl Ge4][%cal Rg6g2]} 27. f4 {[%emt 0:01:10][%cal Bf2f4,Bf4f5][%mdl 32]} Bh4 {[%emt 0:01:48]} 28. Rf1 {[%emt 0:00:06]} Bxg2 $2 {[%emt 0:02:47][%mdl 8192] [#]} 29. f5 $1 $18 {[%emt 0:01:15]} Qg3 {[%emt 0:00:02] ( -> ...Be4+)} 30. Bf4 {[%emt 0:00:13]} Bg5 {[%emt 0:01:20]} 31. Bxg3 {[%emt 0:01:05] Chess con chili.} Bxd2 {[%emt 0:00:02]} 32. Kxg2 {[%emt 0:00:08] Ra1 is the strong threat.} Bxc1 {[%emt 0:00:04]} 33. Rxc1 {[%emt 0:00:04]} Re2+ {[%emt 0:00:07]} 34. Kf3 {[%emt 0:00:39]} Ra2 {[%emt 0:00:02]} 35. Be1 {[%emt 0:01:02] And now Rc8 would win.} (35. Nc4 Rc8 36. Bxd6 Rxa5 37. Nxa5 Rxc1 $18) 35... Re8 {[%emt 0:01:12]} (35... Ra3+ $142 36. Bc3 Re8) 36. Bb4 {[%emt 0:00:52]} Re5 {[%emt 0:02:25]} 37. Rc8+ {[%emt 0:00:25]} Kh7 {[%emt 0:00:03]} 38. Nd7 $2 {[%emt 0:00:30]} (38. Bxd6 $18 Rxf5+ 39. Ke4) 38... Rxf5+ $11 {[%emt 0:00:24]} 39. Ke4 {[%emt 0:00:14]} g6 $2 {[%emt 0:00:33][%mdl 8192]} (39... Rh5 $11) 40. Bc3 $18 {[%emt 0:00:37][%csl Gc3][%cal Rc8h8]} Ra4+ {[%emt 0:00:20]} 41. Ke3 {[%emt 0:00:00][%csl Gc3][%cal Rc8h8]} g5 {[%emt 0:00:00]} 42. Nf8+ {[%emt 0:00:00]} Kg8 {[%emt 0:00:00]} 43. Ng6+ {[%emt 0:00:00]} Kh7 {[%emt 0:00:00]} 44. Ne7 {[%emt 0:00:00] Weighted Error Value: White=0.22 (precise) /Black=0.39} 1-0

[Event "Chhattisgarh Masters GM 2022"]
[Site "Chhattisgarh"]
[Date "2022.09.27"]
[Round "9.18"]
[White "Laddha, Shubh Jayesh"]
[Black "Kumar, Gaurav"]
[Result "1-0"]
[ECO "C55"]
[WhiteElo "2248"]
[BlackElo "2073"]
[Annotator "TA"]
[PlyCount "66"]
[EventDate "2022.09.19"]
[EventCountry "IND"]
[SourceTitle "playchess.com"]
[Source "ChessBase"]
[SourceQuality "1"]
[TimeControl "5400+30"]

{[%evp 13,66,36,26,26,30,34,31,31,37,25,26,29,31,21,12,-8,77,81,69,6,14,0,64,72,52,62,62,60,69,59,67,45,95,100,96,87,95,79,140,145,272,287,308,316,304,304,291,294,295,279,354,336,345,342,639]} 1. e4 {[%emt 0:00:03]} e5 {[%emt 0:00:11]} 2. Nf3 {[%emt 0:00:04]} Nc6 {[%emt 0:00:09]} 3. Bc4 {[%emt 0:00:03]} Nf6 {[%emt 0:00:08]} 4. d3 {[%emt 0:00:04]} Be7 {[%emt 0:00:14]} 5. O-O {[%emt 0:00:06]} O-O {[%emt 0:00:14]} 6. Re1 {[%emt 0:00:03]} d6 {[%emt 0:00:26]} 7. a4 {[%emt 0:00:05]} Na5 {[%emt 0:00:08]} 8. Ba2 {[%emt 0:00:04] C55: Two Knights: 4 d3, 4 d4 exd4 5 e5 and Max Lange Attack.} c5 {[%emt 0:00:22]} 9. c3 {[%emt 0:00:06]} Nc6 {[%emt 0:00:12]} 10. Na3 {[%emt 0:00:05] White is slightly better.} h6 {[%emt 0:01:28]} 11. Bd2 {[%emt 0:02:22]} a6 {[%emt 0:00:23]} 12. h3 {[%emt 0:03:57]} Re8 {[%emt 0:09:45]} 13. Nc4 {[%emt 0:12:38][%cal Oa4a5]} Be6 {[%emt 0:03:39]} 14. Ne3 {[%emt 0:05:52] [#]} d5 $146 {[%emt 0:02:19]} (14... Bxa2 $11 15. Rxa2 d5) ({Predecessor:} 14... Bxa2 15. Rxa2 Bf8 16. Nh2 d5 17. Nhg4 Nxg4 18. Qxg4 dxe4 19. dxe4 Nb4 20. cxb4 Qxd2 {1-0 (40) Alekseenko,K (2650)-Lomasov,S (2542) Yaroslavl 2019}) 15. exd5 $16 {[%emt 0:04:47]} Nxd5 {[%emt 0:00:28]} 16. Nc4 {[%emt 0:03:28]} (16. Ng4 $1 $14) 16... f6 $11 {[%emt 0:02:33]} 17. a5 {[%emt 0:10:55][%cal Od3d4]} Qd7 {[%emt 0:23:33]} (17... Bf8 $11) 18. d4 $1 $14 {[%emt 0:06:53]} cxd4 {[%emt 0:08:48]} 19. cxd4 {[%emt 0:01:33][%cal Bc3d4,Bd4e5][%mdl 32]} Rad8 $1 {[%emt 0:03:01]} (19... exd4 $2 20. Nb6 Ne3 21. Nxd7 $18) (19... Nxd4 $2 20. Nxd4 Bf7 {[#]} 21. Rxe5 $1 $18 {[%mdl 512]}) 20. dxe5 {[%emt 0:05:43]} f5 {[%emt 0:01:44]} 21. Qe2 {[%emt 0:05:56]} Bc5 {[%emt 0:00:57]} 22. Rad1 {[%emt 0:02:24]} Qf7 {[%emt 0:01:13]} ({Black should try} 22... Qe7 $14) 23. Nd6 $1 $16 {[%emt 0:04:06]} Bxd6 {[%emt 0:00:36]} 24. exd6 {[%emt 0:00:04]} Rxd6 {[%emt 0:01:31]} 25. Ne5 {[%emt 0:01:55]} Nxe5 {[%emt 0:16:09]} ({Better is} 25... Qc7) 26. Qxe5 {[%emt 0:00:05]} Rdd8 {[%emt 0:00:59]} (26... Rd7 $16) 27. Bc3 $18 {[%emt 0:04:02]} Kh7 {[%emt 0:01:20] [#]} 28. Rxd5 $1 {[%emt 0:04:08][%mdl 512]} Bxd5 {[%emt 0:01:03]} 29. Bxd5 {[%emt 0:00:06]} Rxe5 {[%emt 0:02:37]} 30. Bxf7 {[%emt 0:00:04] This bishop pair is nice.} Rxe1+ {[%emt 0:00:11]} 31. Bxe1 {[%emt 0:00:03]} Rd1 {[%emt 0:00:20]} 32. Kf1 {[%emt 0:00:04]} Rb1 {[%emt 0:00:07]} 33. b3 {[%emt 0:01:09] Bd5 is the strong threat.} g6 $2 {[%emt 0:00:08] Weighted Error Value: White=0.08 (flawless) /Black=0.24 (precise)} (33... Rc1 34. Bc4 Rc2) 1-0

[Event "Chhattisgarh Masters GM 2022"]
[Site "Chhattisgarh"]
[Date "2022.09.27"]
[Round "9.19"]
[White "Singh, Arvinder Preet"]
[Black "Masango, Spencer"]
[Result "1-0"]
[ECO "C80"]
[WhiteElo "2007"]
[BlackElo "2192"]
[Annotator "TA"]
[PlyCount "63"]
[EventDate "2022.09.19"]
[EventCountry "IND"]
[SourceTitle "playchess.com"]
[Source "ChessBase"]
[SourceQuality "1"]
[TimeControl "5400+30"]

{[%evp 17,63,13,14,4,18,15,7,-5,-6,-11,23,14,46,57,68,56,67,62,112,104,98,72,77,80,115,130,127,134,137,83,172,173,183,178,195,166,842,828,984,967,29983,29984,29983,29984,29984,29985,29984,29984]} 1. e4 {[%emt 0:00:30]} e5 {[%emt 0:00:08]} 2. Nf3 {[%emt 0:00:05]} Nc6 {[%emt 0:00:06]} 3. Bb5 {[%emt 0:00:04][%cal Bf1b5,Bb5a4,Ba4b3][%mdl 32]} a6 {[%emt 0:00:08]} 4. Ba4 {[%emt 0:00:05]} Nf6 {[%emt 0:00:06]} 5. O-O {[%emt 0:00:03]} Nxe4 {[%emt 0:00:06]} 6. d4 {[%emt 0:00:15]} b5 {[%emt 0:00:06]} 7. Bb3 {[%emt 0:00:04]} d5 {[%emt 0:00:05]} 8. Nxe5 {[%emt 0:00:05]} Nxe5 {[%emt 0:00:30]} 9. dxe5 {[%emt 0:00:03]} Be6 {[%emt 0:00:17]} 10. Nd2 {[%emt 0:00:40] C80: Open Ruy Lopez: Sidelines and 9 Nbd2.} Nc5 {[%emt 0:01:11]} 11. c3 {[%emt 0:00:05]} Nxb3 {[%emt 0:10:45]} 12. Nxb3 {[%emt 0:00:03] The position is equal.} c5 {[%emt 0:00:19]} 13. Be3 {[%emt 0:02:33] [#]} Qc8 $146 {[%emt 0:05:03]} ({Predecessor:} 13... Rc8 14. f4 g6 15. Qe1 Be7 16. Rd1 a5 17. Qf2 Qc7 18. Nd2 b4 19. h3 O-O {½-½ (32) Gruber,R (2005)-Boda,A (1914) LSS email 2013}) 14. f4 {[%emt 0:04:13]} Be7 {[%emt 0:02:59]} 15. Qf3 {[%emt 0:01:14]} g6 {[%emt 0:01:26]} 16. Qf2 {[%emt 0:00:06][%cal Re3c5] White is more active.} c4 {[%emt 0:26:42]} 17. Nd4 {[%emt 0:00:10]} Bf5 {[%emt 0:00:32]} ({Better is} 17... b4 $14) 18. Nxf5 $16 {[%emt 0:04:14]} Qxf5 {[%emt 0:00:05]} 19. Bc5 {[%emt 0:00:43] Strongly threatening Bxe7.} Qe6 {[%emt 0:02:13]} 20. Rad1 {[%emt 0:02:06][%cal Ba1d1,Bd1d4,Bd4h4,Bh4h7,Bh7f7][%mdl 32]} Rd8 {[%emt 0:05:48]} 21. Bxe7 {[%emt 0:03:52]} Qxe7 {[%emt 0:00:19]} 22. f5 {[%emt 0:00:20][%cal Bf4f5,Bf5f6][%mdl 32]} O-O {[%emt 0:00:11]} 23. Qg3 {[%emt 0:11:29]} (23. Qd4 $142) 23... Kh8 {[%emt 0:06:29] [#]} (23... Rfe8 $16) 24. f6 $1 $36 {[%emt 0:00:48][%mdl 2048] Black is under strong pressure.} Qc5+ {[%emt 0:02:36] [#]} 25. Rd4 $1 {[%emt 0:02:00]} Rfe8 {[%emt 0:03:17]} 26. Qg5 {[%emt 0:01:35]} Kg8 $2 {[%emt 0:06:13]} (26... b4 27. Qh6 Qf8 28. Qxf8+ Rxf8) 27. Rf3 {[%emt 0:00:35] White wants to mate with Rh3.} (27. Qh6 Qf8 28. Qf4 Rd7 $16) 27... Re6 {[%emt 0:09:50]} 28. Rh3 {[%emt 0:07:16] Qh6 would kill now.} (28. Qh6 Qf8 29. Qf4 b4 $14) 28... Qf8 {[%emt 0:03:43]} 29. Rdh4 {[%emt 0:02:42] White mates.} ({Less strong is} 29. Qh4 h6 $18) 29... Qc5+ {[%emt 0:00:08]} 30. Kf1 {[%emt 0:01:08]} Kf8 {[%emt 0:01:45]} 31. Rxh7 {[%emt 0:00:06][%cal Rh7h8]} Ke8 {[%emt 0:00:08] [#]} 32. Rxf7 $3 {[%emt 0:02:11][%mdl 512] Weighted Error Value: White=0.06 (flawless) /Black=0.49} 1-0

[Event "Chhattisgarh Masters GM 2022"]
[Site "Chhattisgarh"]
[Date "2022.09.27"]
[Round "9.21"]
[White "Arhan Chethan Anand"]
[Black "Ankitha Goud Palle"]
[Result "1-0"]
[ECO "C10"]
[WhiteElo "2155"]
[BlackElo "1990"]
[Annotator "TA"]
[PlyCount "59"]
[EventDate "2022.09.19"]
[EventCountry "IND"]
[SourceTitle "playchess.com"]
[Source "ChessBase"]
[SourceQuality "1"]
[TimeControl "5400+30"]

{[%evp 18,59,89,68,149,148,145,157,160,137,140,136,122,134,384,385,383,383,377,143,331,312,542,519,818,816,781,564,1206,910,895,891,887,832,863,839,29991,29991,29994,29995,29995,29996,29996,29997]} 1. e4 {[%emt 0:00:07]} e6 {[%emt 0:00:16]} 2. d4 {[%emt 0:00:04]} d5 {[%emt 0:00:04]} 3. Nc3 {[%emt 0:00:04]} dxe4 {[%emt 0:01:34]} 4. Nxe4 {[%emt 0:00:05]} Nf6 {[%emt 0:00:28]} 5. Nxf6+ {[%emt 0:00:28]} Qxf6 {[%emt 0:01:07]} 6. Nf3 {[%emt 0:00:22]} h6 {[%emt 0:01:39]} 7. Bd3 {[%emt 0:02:42]} Bd6 {[%emt 0:03:45]} 8. Qe2 {[%emt 0:03:11]} Nc6 {[%emt 0:05:29]} 9. c3 {[%emt 0:01:38]} Bd7 {[%emt 0:04:47]} 10. O-O {[%emt 0:11:03]} O-O-O {[%emt 0:06:31] [#] C10: French with 3 Nc3: Unusual Black 3rd moves and 3...dxe4.} (10... a5 $14) 11. b4 $1 $16 {[%emt 0:01:09][%cal Bb2b4,Bb4b5][%mdl 32]} g5 {[%emt 0:03:36]} 12. b5 {[%emt 0:09:53]} Ne7 {[%emt 0:04:24] White is clearly better.} 13. c4 {[%emt 0:04:02][%cal Bc3c4,Bc4c5][%mdl 32] Prevents Nd5.} Nf5 {[%emt 0:15:59]} 14. Bb2 {[%emt 0:03:12] c5 is the strong threat.} g4 {[%emt 0:07:14]} 15. Ne5 {[%emt 0:01:05] [#]} Rhg8 $146 {[%emt 0:08:56]} (15... Bxe5 $16 {keeps fighting.} 16. dxe5 (16. Qxe5 Qxe5 17. dxe5 Rhg8 $14) 16... Qg5) ({Predecessor:} 15... Bxe5 16. dxe5 Qe7 17. Bxf5 exf5 18. e6 Qxe6 19. Qxe6 Bxe6 20. Bxh8 Rxh8 21. Rac1 Rd8 {½-½ (71) Prathiba,Y (2191)-Elezi,L (2058) Philadelphia 2014}) 16. c5 $18 {[%emt 0:06:16]} Bxe5 {[%emt 0:08:48]} 17. dxe5 {[%emt 0:00:20]} ({Not} 17. Qxe5 Qxe5 18. dxe5 Ne7 $14) 17... Qg5 {[%emt 0:01:04][%cal Od7b5]} 18. a4 {[%emt 0:06:00]} (18. c6 $18 {is the precise move to win.}) 18... Nh4 $2 {[%emt 0:02:01]} (18... Kb8 $16 19. Be4 Bc8) 19. Kh1 {[%emt 0:03:40][%cal Oc5c6] Threatens to win with c6!} Qh5 $2 {[%emt 0:04:58]} (19... Kb8 20. Be4 c6) 20. Be4 {[%emt 0:01:30] A strong pair of Bishops.} f5 {[%emt 0:02:19]} (20... Rg5 $142 21. c6 g3 22. cxd7+ Rxd7 23. Qxh5 Rxh5 24. fxg3 Nf5) 21. exf6 {[%emt 0:02:20]} Be8 {[%emt 0:01:59]} 22. c6 {[%emt 0:09:44]} Bg6 {[%emt 0:03:20]} 23. cxb7+ {[%emt 0:00:44]} Kb8 {[%emt 0:00:07]} 24. b6 {[%emt 0:01:13] Intending bxc7+ and mate.} Bxe4 {[%emt 0:03:02]} 25. bxc7+ {[%emt 0:01:03]} Kxc7 {[%emt 0:00:10]} 26. Qxe4 {[%emt 0:01:07] Rfc1+ would kill now.} Rd5 {[%emt 0:02:24]} 27. Qh7+ {[%emt 0:01:40] White mates.} Rd7 {[%emt 0:03:04]} 28. Rac1+ {[%emt 0:00:46]} Kxb7 {[%emt 0:00:33]} 29. Qxd7+ {[%emt 0:00:13]} Kb8 {[%emt 0:00:27] [#]} 30. Be5+ $1 {[%emt 0:00:05] Black got outplayed after the opening.  Weighted Error Value: White=0.29 (precise) /Black=0.73} 1-0

[Event "Chhattisgarh Masters GM 2022"]
[Site "Chhattisgarh"]
[Date "2022.09.27"]
[Round "9.22"]
[White "Vinod Kumar Sharma"]
[Black "Tiwari, Arjun"]
[Result "0-1"]
[ECO "B33"]
[WhiteElo "2143"]
[BlackElo "2034"]
[Annotator "TA"]
[PlyCount "106"]
[EventDate "2022.09.19"]
[EventCountry "IND"]
[SourceTitle "playchess.com"]
[Source "ChessBase"]
[SourceQuality "1"]
[TimeControl "5400+30"]

{[%evp 12,106,-4,-16,21,18,25,8,11,1,44,-67,-66,-51,-47,-65,-43,-57,-65,-119,-135,-116,-106,-141,-21,-127,-127,-156,-158,-433,-428,-420,-400,-431,-433,-427,-420,-417,-407,-533,-545,-517,-526,-506,-402,-410,-414,-411,-409,-400,-381,-419,-399,-455,-420,-582,-564,-561,-550,-1187,-1157,-1033,-1231,-1024,-978,-1607,-1862,-1470,-1439,-12840,-12833,-12833,-12834,-29982,-29980,-29980,-29981,-29981,-12839,-29982,-29983,-29983,-29984,-29987,-29988,-29992,-29990,-29991,-29992,-29992,-29991,-29991,-29992,-29992,-29993,-29993,-29994]} 1. e4 {[%emt 0:00:11]} c5 {[%emt 0:00:07]} 2. Nf3 {[%emt 0:00:16]} Nc6 {[%emt 0:00:05]} 3. d4 {[%emt 0:00:47]} cxd4 {[%emt 0:00:06]} 4. Nxd4 {[%emt 0:00:05]} e5 {[%emt 0:01:19]} 5. Nf3 {[%emt 0:00:53]} Nf6 {[%emt 0:00:40]} 6. Nc3 {[%emt 0:00:15]} Bb4 {[%emt 0:03:53]} 7. Bc4 {[%emt 0:01:49]} Nxe4 {[%emt 0:08:24] B33: Sicilian: Pelikan and Sveshnikov Variations.} 8. Qd5 {[%emt 0:01:12][%csl Gc4][%cal Rd5f7]} Nd6 {[%emt 0:00:29]} 9. Bb3 {[%emt 0:00:05]} ({Avoid the trap} 9. Nxe5 $2 Qe7 10. O-O Qxe5 $19) 9... Qa5 {[%emt 0:01:23] The position is equal.} 10. O-O {[%emt 0:01:16]} Bxc3 {[%emt 0:11:02]} 11. bxc3 {[%emt 0:00:23]} (11. Qxd6 $14 Bb4 12. Qd3) 11... Qxd5 $15 {[%emt 0:00:34]} 12. Bxd5 {[%emt 0:00:08][%cal Of3e5] [#]} f6 $146 {[%emt 0:00:49]} ({Predecessor:} 12... O-O 13. Ba3 Nb5 14. Bxf8 Kxf8 15. Bxc6 dxc6 16. Nxe5 Nxc3 17. Rfe1 f6 18. Nc4 b5 {1-0 (47) Cristofari,A (2091)-Battesti,S (1864) Corsico 2004}) 13. Re1 {[%emt 0:03:34]} Nb5 {[%emt 0:13:15]} 14. Bb2 {[%emt 0:01:29]} Nc7 {[%emt 0:00:34]} 15. Bb3 {[%emt 0:02:40]} (15. c4) (15. c4 $15) 15... d5 $17 {[%emt 0:00:58]} 16. Nd4 {[%emt 0:04:17]} g5 {[%emt 0:12:48]} 17. Ba3 {[%emt 0:09:58]} Kd8 {[%emt 0:14:16]} (17... Na5 $17 18. f3 Nxb3 19. cxb3 Kf7) 18. Ne2 {[%emt 0:06:01] [#]} (18. Nxc6+ bxc6 19. c4) (18. Nxc6+ $11 bxc6 19. c4) 18... Be6 $1 {[%emt 0:02:59] aiming for ...a5.} 19. Rad1 {[%emt 0:01:29] [#]} Kc8 $1 {[%emt 0:00:26]} 20. g3 $2 {[%emt 0:01:29] This costs White the game.} (20. Rb1 $17) 20... a5 $19 {[%emt 0:03:30]} 21. c4 {[%emt 0:02:10][%cal Rc4d5]} dxc4 {[%emt 0:01:07]} 22. Ba4 {[%emt 0:00:06]} b5 {[%emt 0:02:55]} 23. Rd6 {[%emt 0:00:06]} Nd8 {[%emt 0:01:00]} 24. Nc3 {[%emt 0:00:44]} bxa4 {[%emt 0:00:55]} 25. Nxa4 {[%emt 0:00:07]} Nb5 {[%emt 0:02:12][%csl LRa3,LRd6]} 26. Nb6+ {[%emt 0:00:50]} Kb7 {[%emt 0:00:10]} 27. Nxa8 {[%emt 0:02:17][%cal Oe1b1] Strongly threatening Rb1!} Nxd6 {[%emt 0:01:29]} 28. Bxd6 {[%emt 0:00:08]} Kxa8 {[%emt 0:00:15]} 29. Be7 {[%emt 0:00:10]} Nf7 {[%emt 0:01:22]} 30. Bxf6 {[%emt 0:00:11]} Re8 {[%emt 0:00:53]} 31. c3 {[%emt 0:00:16]} Bf5 {[%emt 0:00:59]} 32. f3 {[%emt 0:00:29]} h5 {[%emt 0:00:38]} 33. Kf2 {[%emt 0:00:21]} Re6 {[%emt 0:01:27]} 34. Bg7 {[%emt 0:00:22]} g4 {[%emt 0:00:06]} 35. f4 {[%emt 0:00:31]} exf4 {[%emt 0:03:17]} 36. Rxe6 {[%emt 0:00:46]} Bxe6 {[%emt 0:00:02]} 37. gxf4 {[%emt 0:00:09]} Nd6 {[%emt 0:00:08]} 38. Be5 {[%emt 0:00:53]} Nf5 {[%emt 0:00:08]} 39. Bc7 {[%emt 0:00:13]} a4 {[%emt 0:00:12]} 40. a3 {[%emt 0:00:16]} h4 {[%emt 0:00:23][%cal Bh5h4,Bh4h3][%mdl 32] ( -> ...Kb7)} 41. Bd8 {[%emt 0:00:37]} h3 {[%emt 0:00:16]} 42. Kg1 {[%emt 0:01:56]} Bd5 {[%emt 0:00:28]} 43. Bb6 {[%emt 0:00:09]} Kb7 {[%emt 0:00:59]} 44. Bf2 {[%emt 0:00:09]} Kc6 {[%emt 0:00:04]} (44... Bg2 $142 45. Bc5 Kc6 46. Bb4 Kd5 47. Kf2 Be4 48. Ba5 g3+ 49. Kg1 Ne3 50. f5 Kc6 51. Bd8 Ng4 52. Bc7 Kxc7 53. Kf1 gxh2 54. Ke1 h1=Q+ 55. Kd2 h2 56. Ke2 Qg2+ 57. Ke1 h1=Q#) 45. Ba7 {[%emt 0:01:14]} Bf3 {[%emt 0:00:15] Black mates.} 46. Kf2 {[%emt 0:00:07]} Kd5 {[%emt 0:00:04]} 47. Bb8 {[%emt 0:00:11]} Ke4 {[%emt 0:00:08]} 48. Be5 {[%emt 0:00:05]} Kd3 {[%emt 0:00:17]} 49. Bf6 {[%emt 0:00:29]} g3+ {[%emt 0:01:08]} 50. Kg1 {[%emt 0:00:06]} g2 {[%emt 0:00:06]} 51. Kf2 {[%emt 0:00:28] [#]} Ng3 $1 {[%emt 0:00:20][%mdl 512]} 52. Bd4 {[%emt 0:00:31]} Ne2 {[%emt 0:00:13]} 53. Kxf3 {[%emt 0:00:12]} Nxd4+ {[%emt 0:00:05] Weighted Error Value: White=0.68/Black=0.15 (very precise)} 0-1